{"text_format":"1","workbook":"xlsx","n_sheets":4,"sheets":["Erläuterung","Modellrechnungen","Ergebnisblatt","Referenztabelle"],"not_rendered":{"charts":0,"images":1,"macros":1,"external_links":0,"defined_names":2,"comments":1,"pivot_tables":0},"unopened":[],"bounds":{"document_bytes":16777216,"sheet_cells":100000,"rows_first":2000,"rows_last":500,"rows_between":2000,"halvings":0,"cell_chars":16384,"cell_head_chars":4096},"cells_cut":0,"cells_raw":0,"read":"whole","date_system":"1900"}

{"sheet":"Erläuterung","index":0,"n_rows":10,"n_cols":6,"rows_kept":10,"cut":false,"hidden":false,"merged":[[6,1,6,11],[9,1,9,11],[5,1,5,11],[8,1,8,11]]}
[]
[null,null,null,null,null,"Bewertungstool - CO2-Bepreisungsoptionen"]
[]
[]
[]
[null,"Bewertung von Bepreisungsoptionen"]
[null,"Für die Erreichung der nationalen und europäischen 2030er-Klimaziele erscheint es aus heutiger Sicht notwendig, zusätzliche klimapolitische Maßnahmen zu ergreifen. Dabei nimmt die Idee einer zusätzlichen CO2-Bepreisung breiten Raum in der öffentlichen und politischen Debatte ein. Weitestgehend unabhängig von der Entscheidung für mengen- oder preisbasierte CO2-Bepreisungsmodelle wird eine Entscheidung für eine zusätzliche CO2-Bepreisung Auswirkungen auf die Preise für eingesetzte Energieträger und somit die Kostensituation deutscher Unternehmen haben. Mithilfe dieses Bewertungstools möchten wir die Kosteneffekte für zwei grundlegende Ansätze sicht- und vergleichbar machen.\n\nVariante 1 beschreibt ein mögliches Preisinstrument, in dem ein Aufschlag auf die Energiesteuer entsprechend des jeweiligen CO2-Gehalts des eingesetzten Energieträgers angenommen wird. In dieser Variante werden jedoch nicht die bestehenden Energiesteuersätze zugrunde gelegt, sondern die in der Energiesteuerrichtline (RICHTLINIE 2003/96/EG) definierten Mindeststeuersätze.\n\nIn Variante 2 wird eine CO2-Bepreisung (orientiert am CO2-Gehalt des Energieträgers) als zusätzliches Preiselement angenommen. Dies könnte bspw. als Aufschlag auf die bisherigen Energiesteuersätze erfolgen. Die Einführung einer zusätzlichen CO2-Abgabe oder ein implizites Preissignal über ein Zertifikatesystem wären in ihrer Wirkung jedoch vergleichbar.\n\nDas Berechnungstool soll Ihnen und uns helfen, Preiseffekte aus einer zusätzlichen CO2-Bepreisung besser abschätzen zu können. Es handelt sich um Näherungswerte mit bestimmten Annahmen, die es aber ermöglichen, qualitative Aussagen über mögliche Be- und Entlastungswirkungen zu treffen. Ausgangswerte der Berechnung können daher Ihre realen Energieverbräuche und -kosten sein. "]
[]
[null,"Vorgehen"]
[null,"Das Berechnungstool besteht aus zwei weiteren Tabellenblättern:\n   - einem Tabellenblatt \"Modellrechnungen\"\n   - und einem Tabellenblatt \"Ergebnisblatt\".\nWährend auf erstem Ihre Dateneingabe und die Berechnung für die oben beschriebenen Varianten erfolgen, können Sie das zweite nutzen, um Ihre Daten für den Versand an uns auszulesen.\n\nAusgangswerte für die Modellrechnungen sollten Ihre realen Energieverbräuche und -kosten sein. Alle Ihre Angaben werden streng vertraulich behandelt und nur in anonymisierter Form verarbeitet. Sollten Sie uns Ihre Energieverbräuche und -kosten jedoch nicht übermitteln wollen, besteht die Möglichkeit, über das Ergebnisblatt die ermittelten relativen Kosteneffekte und Ihre qualitativen Bewertungen auszulesen (Freigabe von Makros erforderlich) und nur diese an uns zu übermitteln.\n\nArbeitsschritte:\n   1. Angabe Strukturdaten (Unternehmensgröße, Branche, Bundesland)\n   2. Angabe Energieverbräuche und Kosten nach Energieträgern\n   3. Bewertung der Ergebnisse bspw. nach Auswirkungen auf die eigene Geschäftstätigkeit (drop-down-Auswahl und Freitextfelder)\n   4. Versand des Bewertungstools mit Ihren Ergebnisse und Bewertungen an: hauck.jacqueline@dihk.de\nOptional: \n   5. Nutzung des Ergebnisblatts - betätigen des Buttons \"Daten aus Modellberechnung übertragen\". Es werden nur die relativen\n       Kosteneffekte und Ihre qualitativen Bewertungen übernommen (nur die Werte, keine dahinterliegenden Informationen über die\n       Ausgangsdaten).\n       Wichtig: Für den Übertrag Ihrer Angaben in das Ergebnisblatt muss die Verwendung von Makros freigegeben sein.\n   6. Anschließend können Sie das Tabellenblatt \"Modellrechnungen\" löschen und das Bewertungstool nur mit dem Ergebnisblatt\n       versenden an hauck.jacqueline@dihk.de.\n\nGrundsätzlich können alle weißen Zellen beschrieben bzw. die dort hinterlegten Werte geändert werden."]

{"sheet":"Modellrechnungen","index":1,"n_rows":40,"n_cols":9,"rows_kept":40,"cut":false,"hidden":false,"merged":[[5,4,5,6],[5,1,5,2],[16,6,16,7],[28,3,28,4],[36,1,36,6],[38,5,39,6],[18,8,24,9],[14,1,14,9],[30,5,35,6],[26,1,26,6]]}
[]
[null,null,null,"Bewertungstool - CO2-Bepreisungsoptionen"]
[]
[null,null,"Alle Ihre Angaben werden streng vertraulich beahndelt und nur in anonymisierter Form verarbeitet."]
[]
[null,"Angaben zum Unternehmen",null,null,"Energieverbrach nach Energieträgern"]
[null,"Unternehmensgröße (Mitarbeiter Vollzeitäquivalente)",null,null,"Energieträger","Jahresverbrauch\n(in MWh, t oder Tsd. l)","Kosten pro Jahr\nin Euro"]
[null,"Branche",null,null,"Strom"]
[null,"Bundesland",null,null,"Gas"]
[null,null,null,null,"Heizöl"]
[null,null,null,null,"Kohle"]
[null,null,null,null,"Diesel (Kraftstoff)"]
[null,null,null,null,"Benzin (Kraftstoff)"]
[]
[null,"Variante 1: CO2-Komponente auf Energie- und Stromsteuer - Annahme europ. Mindeststeuersätze"]
[]
[null,"CO2-Preis (Euro/t):",35,null,null,null,"(Berechnung ohne MwSt.)",null,"Ihre Bewertung der Variante:"]
[]
[null,"Energieträger","aktuelle Energiekosten in Euro","Energiekosten mit neuer CO2-Komponente in Euro","Veränderung Energiekosten in Prozent","Energiesteuer heute in Euro","Energiesteuer mit CO2-Komponente in Euro","Veränderung Energiesteuer in Prozent"]
[null,"Strom",{"$f":"$G$8","v":0},{"$f":"C20-F20+G20","v":0},{"$f":"IF(D20=0,\"\",((D20/C20*100)-100))","v":""},{"$f":"(F8*1000)*(IF(C8=\"Industrie\",Referenztabelle!G6,Referenztabelle!F6))","v":0},{"$f":"((F8*1000)*Referenztabelle!H6)","v":0},{"$f":"IF(G20=0,\"\",((G20/F20*100)-100))","v":""}]
[null,"Gas",{"$f":"$G$9","v":0},0,{"$f":"IF(D21=0,\"\",((D21/C21*100)-100))","v":""},{"$f":"(F9*1000)*(IF(C8=\"Industrie\",Referenztabelle!G7,Referenztabelle!F7))","v":0},{"$f":"(F9*1000*Referenztabelle!H7)+((F9*1000)*Referenztabelle!I7)","v":0},{"$f":"IF(G21=0,\"\",((G21/F21*100)-100))","v":""}]
[null,"Heizöl",{"$f":"$G$10","v":0},0,"",{"$f":"(F10*1000)*(IF(C8=\"Industrie\", Referenztabelle!G8, Referenztabelle!F8))","v":0},{"$f":"(F10*1000*Referenztabelle!H8)+((F10*1000)*Referenztabelle!I8)","v":0},""]
[null,"Kohle",{"$f":"$G$11","v":0},0,"",{"$f":"(F11*1000)*(IF(C9=\"Industrie\",Referenztabelle!G9,Referenztabelle!F9))","v":0},{"$f":"(F11*1000*Referenztabelle!H9)+((F11*1000)*Referenztabelle!I9)","v":0},""]
[null,"Diesel (Kraftstoff)",{"$f":"$G$12","v":0},0,"",{"$f":"(F12*1000)*(IF(C8=\"Industrie\",Referenztabelle!G10,Referenztabelle!F10))","v":0},{"$f":"(F12*1000*Referenztabelle!H10)+((F12*1000)*Referenztabelle!I10)","v":0},""]
[null,"Benzin (Kraftstoff)",{"$f":"$G$13","v":0},0,"",{"$f":"(F13*1000)*(IF(C8=\"Industrie\",Referenztabelle!G11,Referenztabelle!F11))","v":0},{"$f":"(F13*1000*Referenztabelle!H11)+((F13*1000)*Referenztabelle!I11)","v":0},""]
[]
[null,"Variante 2: CO2-Bepreisung bspw. als Aufschlag auf Energie- und Stromsteuer (orientiert an CO2-Gehalt der Energieträger)"]
[]
[null,"CO2-Preis (Euro/t):",35,"(Berechnung ohne MwSt.)",null,"Ihre Bewertung der Variante:"]
[]
[null,"Energieträger","aktuelle Energiekosten in Euro","Energiekosten mit neuer CO2-Komponente in Euro","Veränderung Energiekosten in Prozent"]
[null,"Gas",{"$f":"$G$9","v":0},{"$f":"C32+(F9*1000*Referenztabelle!I19)","v":0},{"$f":"IF(D32=0,\"\",((D32/C32*100)-100))","v":""}]
[null,"Heizöl",{"$f":"$G$10","v":0},{"$f":"C33+(F10*1000*Referenztabelle!I20)","v":0},""]
[null,"Kohle",{"$f":"$G$11","v":0},{"$f":"C34+(F11*1000*Referenztabelle!I21)","v":0},""]
[null,"Diesel (Kraftstoff)",{"$f":"$G$12","v":0},{"$f":"C35+(F12*1000*Referenztabelle!I22)","v":0},""]
[null,"Benzin (Kraftstoff)",{"$f":"$G$13","v":0},{"$f":"C36+(F13*1000*Referenztabelle!I23)","v":0},""]
[null,"Mögliche Entlastung für Variante 2: Reduzierte Stromsteuer oder EEG-Umlage"]
[null,"Entlastung\nin Euro pro kWh","aktuelle Stromkosten\nin Euro","reduzierte Stromkosten\nin Euro","Veränderung Stromkosten in Prozent","Ihre Bewertung der Entlastung:"]
[null,0.02,{"$f":"$G$8","v":0},{"$f":"G8-((F8*1000)*B39)","v":0},{"$f":"IF(D39=0,\"\",((D39/C39*100)-100))","v":""}]
[null,0.05,{"$f":"$G$8","v":0},{"$f":"G8-((F8*1000)*B40)","v":0},{"$f":"IF(D40=0,\"\",((D40/C40*100)-100))","v":""}]

{"sheet":"Ergebnisblatt","index":2,"n_rows":36,"n_cols":5,"rows_kept":36,"cut":false,"hidden":false,"merged":[[34,3,35,4],[32,1,32,4],[8,4,8,5],[26,3,31,4],[5,1,5,2],[10,1,10,5],[22,1,22,4],[14,4,20,5]]}
[]
[null,null,null,"Bewertungstool - CO2-Bepreisungsoptionen"]
[]
[null,null,"Alle Ihre Angaben werden streng vertraulich beahndelt und nur in anonymisierter Form verarbeitet."]
[]
[null,"Angaben zum Unternehmen"]
[null,"Unternehmensgröße (Mitarbeiter Vollzeitäquivalente)"]
[null,"Branche"]
[null,"Bundesland",null,null,"(Freigabe für die Nutzung von Makros erforderlich)"]
[]
[null,{"$f":"Modellrechnungen!B15:J15","v":"Variante 1: CO2-Komponente auf Energie- und Stromsteuer - Annahme europ. Mindeststeuersätze"}]
[]
[null,"CO2-Preis (Euro/t):",35,null,"Ihre Bewertung der Variante:"]
[]
[null,"Energieträger","Veränderung Energiekosten in Prozent","Veränderung Energiesteuer in Prozent"]
[null,"Strom","",""]
[null,"Gas","",""]
[null,"Heizöl","",""]
[null,"Kohle","",""]
[null,"Diesel (Kraftstoff)","",""]
[null,"Benzin (Kraftstoff)","",""]
[]
[null,{"$f":"Modellrechnungen!B27:G27","v":"Variante 2: CO2-Bepreisung bspw. als Aufschlag auf Energie- und Stromsteuer (orientiert an CO2-Gehalt der Energieträger)"}]
[]
[null,"CO2-Preis (Euro/t):",35,"Ihre Bewertung der Variante:"]
[]
[null,"Energieträger","Veränderung Energiekosten in Prozent"]
[null,"Gas",""]
[null,"Heizöl",""]
[null,"Kohle",""]
[null,"Diesel (Kraftstoff)",""]
[null,"Benzin (Kraftstoff)",""]
[null,"Mögliche Entlastung für Variante 2: Reduzierte Stromsteuer oder EEG-Umlage"]
[null,"Entlastung\nin Euro pro kWh","Veränderung Stromkosten in Prozent","Ihre Bewertung der Entlastung:"]
[null,0.02,""]
[null,0.05,""]

{"sheet":"Referenztabelle","index":3,"n_rows":73,"n_cols":12,"rows_kept":73,"cut":false,"hidden":true,"merged":[]}
[]
[null,null,"Variante 1","CO2-Preis",{"$f":"Modellrechnungen!C17","v":35},"EUR/t"]
[null,null,null,"CO2-Preis",{"$f":"E2/1000","v":3.5000000000000003E-2},"EUR/kg"]
[]
[null,null,null,null,null,"aktueller Energiesteuersatz","reduzierte Energiesteuer (prod. Gewerbe)","Mindestsatz","CO2-Komponente","Steuer kumuliert",null,"Energiesteuerreduzierung (prod. Gewerbe)"]
[null,null,null,"CO2-Energiesteuer Strom","EUR/kWh",2.0500000000000001E-2,{"$f":"F6-L6","v":1.5370000000000002E-2},5.0000000000000001E-4,{"$f":"E$30*E3","v":1.7010000000000001E-2},{"$f":"F6+I6","v":3.7510000000000002E-2},null,5.13E-3]
[null,null,null,"CO2-Energiesteuer Erdgas ","EUR/kWh",5.4999999999999997E-3,{"$f":"F7-L7","v":4.1199999999999995E-3},5.0000000000000001E-4,{"$f":"E$32*E3","v":7.0700000000000008E-3},1.2570000000000001E-2,null,1.3799999999999999E-3]
[null,null,null,"CO2-Energiesteuer Heizöl (leichtes Heizöl)","EUR/l",6.1400000000000003E-2,4.6060000000000004E-2,2.1000000000000001E-2,{"$f":"E$31*E3*E$38","v":9.0306999999999998E-2},0.15170700000000001,null,1.5339999999999999E-2]
[null,null,null,"CO2-Energiesteuer Kohle (Rohsteinkohle)","EUR/kg",9.6717000000000001E-3,9.6717000000000001E-3,4.3962000000000003E-3,{"$f":"E$33*E3*E$36","v":9.3800000000000008E-2},0.10347170000000001]
[null,null,null,"CO2-Energiesteuer Diesel ","EUR/l",0.47039999999999998,0.47039999999999998,0.33,{"$f":"E$35*E$3*E$38","v":9.0306999999999998E-2},0.56070699999999996]
[null,null,null,"CO2-Energiesteuer Benzin ","EUR/l",0.65449999999999997,0.65449999999999997,0.35899999999999999,{"$f":"E$34*E$3*E$37","v":7.8242500000000006E-2},0.73274249999999996]
[]
[]
[null,null,"Variante 2","CO2-Preis",{"$f":"Modellrechnungen!C29","v":35},"EUR/t"]
[null,null,null,"CO2-Preis",{"$f":"E14/1000","v":3.5000000000000003E-2},"EUR/kg"]
[]
[null,null,null,null,null,"aktueller Energiesteuersatz","reduzierte Energiesteuer (prod. Gewerbe)","Mindestsatz","CO2-Komponente","Steuer kumuliert"]
[null,null,null,"CO2-Energiesteuer Strom","EUR/kWh",2.0500000000000001E-2,1.5370000000000002E-2,5.0000000000000001E-4,{"$f":"E$30*E15","v":1.7010000000000001E-2},{"$f":"F18+I18","v":3.7510000000000002E-2}]
[null,null,null,"CO2-Energiesteuer Erdgas ","EUR/kWh",5.4999999999999997E-3,4.1199999999999995E-3,5.0000000000000001E-4,{"$f":"E$32*E15","v":7.0700000000000008E-3},1.2570000000000001E-2]
[null,null,null,"CO2-Energiesteuer Heizöl (leichtes Heizöl)","EUR/l",6.1400000000000003E-2,4.6060000000000004E-2,2.1000000000000001E-2,{"$f":"E$31*E15*E$38","v":9.0306999999999998E-2},0.15170700000000001]
[null,null,null,"CO2-Energiesteuer Kohle (Rohsteinkohle)","EUR/kg",9.6717000000000001E-3,9.6717000000000001E-3,4.3962000000000003E-3,{"$f":"E$33*E15*E$36","v":9.3800000000000008E-2},0.10347170000000001]
[null,null,null,"CO2-Energiesteuer Diesel ","EUR/l",0.47039999999999998,0.47039999999999998,0.33,{"$f":"E$35*E$3*E$38","v":9.0306999999999998E-2},0.56070699999999996]
[null,null,null,"CO2-Energiesteuer Benzin ","EUR/l",0.65449999999999997,0.65449999999999997,0.35899999999999999,{"$f":"E$34*E$3*E$37","v":7.8242500000000006E-2},0.73274249999999996]
[]
[]
[]
[]
[]
[null,null,null,"Emissionsfaktoren"]
[null,null,null,"Strom-Emissionsfaktor (2017)",0.48599999999999999,"kg/kWh"]
[null,null,null,"Heizöl-Emissionsfaktoren",0.26600000000000001,"kg/kWh"]
[null,null,null,"Erdgas-Emissionsfaktoren",0.20200000000000001,"kg/kWh"]
[null,null,null,"Kohle-Emissionsfaktoren",0.33500000000000002,"kg/kWh"]
[null,null,null,"Benzin",0.26300000000000001,"kg/kWh"]
[null,null,null,"Diesel",0.26600000000000001,"kg/kWh"]
[null,null,null,"Heizwert Kohle (Rohsteinkohle)",8,"kWh/kg"]
[null,null,null,"Heizwert Benzin",8.5,"kWh/L"]
[null,null,null,"Heizwert Diesel",9.6999999999999993,"kWh/L"]
[null,null,null,"Quelle Emissionsfaktoren: ","Landesamt für Umwelt Brandenburg"]
[null,null,null,null,"UBA - Entwicklung der spezifischen Kohlendioxid-Emissionen des deutschen Strommix in den Jahren 1990 - 2018"]
[]
[]
[]
[]
[null,null,null,"Mitarbeiter","0 - 9",null,null,"Bewertung allg.",1]
[null,null,null,null,"10 - 19",null,null,null,2]
[null,null,null,null,"20 - 249",null,null,null,3]
[null,null,null,null,"250 - 449",null,null,null,4]
[null,null,null,null,"500 - 999",null,null,null,5]
[null,null,null,null,"über 1000"]
[]
[null,null,null,"Branche","Industrie",null,null,"Bewertung Strom","Kompensation wäre ausreichend"]
[null,null,null,null,"Bau",null,null,null,"Kompensation wäre nicht ausreichend"]
[null,null,null,null,"Handel"]
[null,null,null,null,"Dienstleistung"]
[null,null,null,null,"Land- und Forstwirtschaft"]
[]
[null,null,null,"Bundesland","Bayern"]
[null,null,null,null,"Baden-Württemberg"]
[null,null,null,null,"Saarland"]
[null,null,null,null,"Rheinland-Pfalz"]
[null,null,null,null,"Sachsen"]
[null,null,null,null,"Thüringen"]
[null,null,null,null,"Hessen"]
[null,null,null,null,"Nordrhein-Westfalen"]
[null,null,null,null,"Sachsen-Anhalt"]
[null,null,null,null,"Berlin"]
[null,null,null,null,"Brandenburg"]
[null,null,null,null,"Niedersachsen"]
[null,null,null,null,"Mecklenburg-Vorpommern"]
[null,null,null,null,"Bremen"]
[null,null,null,null,"Hamburg"]
[null,null,null,null,"Schleswig-Holstein"]